lending/lending_fUSD_20250121
["ID","MTS","AMOUNT","RATE_DAILY","PERIOD"]
[349844082,1737457851212,-509.42798266,0.00019726,2]
[349844083,1737457851218,-538.47335286,0.00019726,2]
[349844084,1737457851223,-500.0,0.00019726,2]
[349844085,1737457851232,-500.0,0.00019726,2]
[349844086,1737457851242,-500.0,0.00019726,2]
[349844087,1737457851251,-500.0,0.00019726,2]
[349844088,1737457851259,-500.0,0.00019726,2]
[349844090,1737457851266,-515.77477692,0.00019726,2]
[349844092,1737457851273,-500.0,0.00019726,2]
[349844094,1737457851283,-500.0,0.00019726,2]
[349844096,1737457851292,-500.0,0.00019726,2]
[349844098,1737457851300,-500.0,0.00019726,2]
[349844100,1737457851308,-500.0,0.00019726,2]
[349844102,1737457851315,-500.0,0.00019726,2]
[349844104,1737457851324,-500.0,0.00019726,2]
[349844106,1737457851331,-500.0,0.00019726,2]
[349844108,1737457851339,-500.0,0.00019726,2]
[349844110,1737457851346,-500.0,0.00019726,2]
[349844112,1737457851354,-500.0,0.00019726,2]
[349844114,1737457851362,-500.0,0.00019726,2]
[349844116,1737457851370,-500.0,0.00019726,2]
[349844117,1737457851377,-500.0,0.00019726,2]
[349844119,1737457851385,-500.0,0.00019726,2]
[349844121,1737457851392,-500.0,0.00019726,2]
[349844123,1737457851400,-659.66,0.00019726,2]
[349844125,1737457851408,-500.0,0.00019726,2]
[349844127,1737457851415,-500.0,0.00019726,2]
[349844129,1737457851423,-500.0,0.00019726,2]
[349844131,1737457851431,-500.0,0.00019726,2]
[349844133,1737457851439,-500.0,0.00019726,2]
[349844135,1737457851448,-500.0,0.00019726,2]
[349844137,1737457851455,-611.94,0.00019726,2]
[349844139,1737457851463,-500.0,0.00019726,2]
[349844141,1737457851471,-500.0,0.00019726,2]
[349844143,1737457851481,-500.0,0.00019726,2]
[349844145,1737457851489,-500.0,0.00019726,2]
[349844146,1737457851495,-500.0,0.00019726,2]
[349844148,1737457851503,-500.0,0.00019726,2]
[349844149,1737457851510,-500.0,0.00019726,2]
[349844151,1737457851519,-500.0,0.00019726,2]
[349844154,1737457851529,-500.0,0.00019726,2]
[349844155,1737457851537,-500.0,0.00019726,2]
[349844158,1737457851545,-500.0,0.00019726,2]
[349844160,1737457851552,-500.0,0.00019726,2]
[349844161,1737457851559,-500.0,0.00019726,2]
[349844163,1737457851567,-500.0,0.00019726,2]
[349844165,1737457851575,-500.0,0.00019726,2]
[349844167,1737457851584,-248.07914957,0.00019726,2]
[349844168,1737457851591,-500.0,0.00019726,2]
[349844169,1737457851597,-500.0,0.00019726,2]
[349844170,1737457851606,-500.0,0.00019726,2]
[349844171,1737457851614,-500.0,0.00019726,2]
[349844172,1737457851623,-500.0,0.00019726,2]
[349844173,1737457851630,-500.0,0.00019726,2]
[349844174,1737457851639,-500.0,0.00019726,2]
[349844175,1737457851646,-500.0,0.00019726,2]
[349844176,1737457851656,-500.0,0.00019726,2]
[349844177,1737457851664,-500.0,0.00019726,2]
[349844178,1737457851671,-500.0,0.00019726,2]
[349844179,1737457851679,-500.0,0.00019726,2]
[349844180,1737457851686,-511.17,0.00019726,2]
[349844181,1737457851694,-519.18,0.00019726,2]
[349844182,1737457851703,-500.0,0.00019726,2]
[349844183,1737457851712,-500.0,0.00019726,2]
[349844184,1737457851721,-500.0,0.00019726,2]
[349844185,1737457851728,-500.0,0.00019726,2]
[349844186,1737457851737,-500.0,0.00019726,2]
[349844187,1737457851746,-500.0,0.00019726,2]
[349844188,1737457851755,-505.6,0.00019726,2]
[349844189,1737457851764,-1136.43,0.00019726,2]
[349844190,1737457851772,-185.00254982,0.00019726,2]
[349844191,1737457851781,-500.0,0.00019726,2]
[349844192,1737457851790,-500.0,0.00019726,2]
[349844193,1737457851799,-500.0,0.00019726,2]
[349844194,1737457851807,-512.23755527,0.00019726,2]
[349844195,1737457851815,-500.0,0.00019726,2]
[349844196,1737457851823,-500.0,0.00019726,2]
[349844197,1737457851832,-500.0,0.00019726,2]
[349844198,1737457851840,-500.0,0.00019726,2]
[349844199,1737457851849,-180.98948705,0.00019726,2]
[349844200,1737457851858,-500.0,0.00019726,2]
[349844201,1737457851867,-500.0,0.00019726,2]
[349844202,1737457851876,-518.94,0.00019726,2]
[349844203,1737457851885,-500.0,0.00019726,2]
[349844204,1737457851896,-503.2148402,0.00019726,2]
[349844205,1737457851905,-294.18628343,0.00019726,2]
[349844206,1737457851914,-512.42741537,0.00019726,2]
[349844207,1737457851923,-500.0,0.00019726,2]
[349844208,1737457851931,-504.19548673,0.00019726,2]
[349844209,1737457851940,-500.0,0.00019726,2]
[349844210,1737457851949,-500.0,0.00019726,2]
[349844211,1737457851959,-500.0,0.00019726,2]
[349844212,1737457851968,-500.0,0.00019726,2]
[349844213,1737457851978,-500.0,0.00019726,2]
[349844214,1737457851987,-500.0,0.00019726,2]
[349844215,1737457851997,-500.0,0.00019726,2]
[349844216,1737457852006,-500.0,0.00019726,2]
[349844217,1737457852015,-570.48708513,0.00019726,2]
[349844218,1737457852023,-500.0,0.00019726,2]
[349844219,1737457852032,-673.79,0.00019726,2]
[349844220,1737457852040,-500.0,0.00019726,2]
[349844221,1737457852049,-500.0,0.00019726,2]
[349844222,1737457852057,-500.0,0.00019726,2]
[349844223,1737457852066,-500.0,0.00019726,2]
[349844224,1737457852075,-500.0,0.00019726,2]
[349844225,1737457852084,-500.0,0.00019726,2]
[349844226,1737457852092,-663.28,0.00019726,2]
[349844227,1737457852101,-522.95,0.00019726,2]
[349844228,1737457852110,-500.0,0.00019726,2]
[349844229,1737457852120,-383.248718,0.00019726,2]
[349844230,1737457852129,-500.0,0.00019726,2]
[349844231,1737457852138,-675.8,0.00019726,2]
[349844232,1737457852150,-507.43,0.00019726,2]
[349844233,1737457852158,-216.83360826,0.00019726,2]
[349844234,1737457852167,-500.0,0.00019726,2]
[349844235,1737457852176,-1670.22,0.00019726,2]
[349844236,1737457852185,-661.82,0.00019726,2]
[349844237,1737457852194,-649.18,0.00019726,2]
[349844238,1737457852207,-500.0,0.00019726,2]
[349844239,1737457852215,-500.0,0.00019726,2]
[349844240,1737457852224,-1246.53,0.00019726,2]
[349844241,1737457852233,-500.0,0.00019726,2]
[349844242,1737457852243,-500.0,0.00019726,2]
[349844243,1737457852252,-500.0,0.00019726,2]
[349844244,1737457852261,-662.59,0.00019726,2]
[349844245,1737457852270,-712.45,0.00019726,2]
[349844246,1737457852280,-2017.73,0.00019726,2]
[349844247,1737457852292,-500.0,0.00019726,2]
[349844248,1737457852302,-1214.83,0.00019726,2]
[349844249,1737457852312,-610.63,0.00019726,2]
[349844250,1737457852321,-964.91,0.00019726,2]
[349844251,1737457852331,-524.92,0.00019726,2]
[349844252,1737457852341,-266.68,0.00019726,2]
[349844253,1737457852350,-255.556792,0.00019726,2]
[349844254,1737457852360,-500.0,0.00019726,2]
[349844255,1737457852370,-500.0,0.00019726,2]
[349844256,1737457852379,-500.0,0.00019726,2]
[349844257,1737457852391,-500.0,0.00019726,2]
[349844258,1737457852400,-615.19,0.00019726,2]
[349844259,1737457852410,-1365.53,0.00019726,2]
[349844260,1737457852420,-500.0,0.00019726,2]
[349844261,1737457852429,-197.64440499,0.00019726,2]
[349844262,1737457852439,-500.0,0.00019726,2]
[349844263,1737457852448,-973.38,0.00019726,2]
[349844264,1737457852458,-500.0,0.00019726,2]
[349844265,1737457852467,-500.0,0.00019726,2]
[349844266,1737457852477,-668.31,0.00019726,2]
[349844267,1737457852486,-2048.3,0.00019726,2]
[349844268,1737457852496,-500.0,0.00019726,2]
[349844269,1737457852505,-1972.95,0.00019726,2]
[349844270,1737457852514,-500.0,0.00019726,2]
[349844271,1737457852523,-500.0,0.00019726,2]
[349844272,1737457852533,-1104.67,0.00019726,2]
[349844273,1737457852542,-693.41,0.00019726,2]
[349844274,1737457852551,-1043.27,0.00019726,2]
[349844275,1737457852561,-599.11,0.00019726,2]
[349844276,1737457852571,-500.0,0.00019726,2]
[349844277,1737457852580,-500.0,0.00019726,2]
[349844278,1737457852590,-1277.45,0.00019726,2]
[349844279,1737457852599,-544.1,0.00019726,2]
[349844280,1737457852609,-500.0,0.00019726,2]
[349844281,1737457852619,-500.0,0.00019726,2]
[349844282,1737457852628,-2199.24,0.00019726,2]
[349844283,1737457852637,-578.82,0.00019726,2]
[349844284,1737457852648,-529.46690991,0.00019726,2]
[349844285,1737457852658,-500.0,0.00019726,2]
[349844286,1737457852667,-678.07,0.00019726,2]
[349844287,1737457852677,-962.95,0.00019726,2]
[349844288,1737457852686,-500.0,0.00019726,2]
[349844289,1737457852697,-500.0,0.00019726,2]
[349844290,1737457852706,-500.0,0.00019726,2]
[349844291,1737457852715,-694.91,0.00019726,2]
[349844292,1737457852725,-500.0,0.00019726,2]
[349844293,1737457852734,-802.36,0.00019726,2]
[349844294,1737457852743,-500.0,0.00019726,2]
[349844295,1737457852753,-1780.11,0.00019726,2]
[349844296,1737457852762,-2223.58,0.00019726,2]
[349844297,1737457852771,-636.41,0.00019726,2]
[349844298,1737457852781,-500.0,0.00019726,2]
[349844299,1737457852790,-500.0,0.00019726,2]
[349844300,1737457852800,-1478.14,0.00019726,2]
[349844301,1737457852810,-500.0,0.00019726,2]
[349844302,1737457852820,-801.87,0.00019726,2]
[349844303,1737457852830,-500.0,0.00019726,2]
[349844304,1737457852839,-1731.85,0.00019726,2]
[349844305,1737457852849,-500.0,0.00019726,2]
[349844306,1737457852858,-500.0,0.00019726,2]
[349844307,1737457852867,-747.66,0.00019726,2]
[349844308,1737457852877,-456.45091151,0.00019726,2]
[349844309,1737457852887,-500.0,0.00019726,2]
[349844310,1737457852899,-561.73,0.00019726,2]
[349844311,1737457852908,-500.0,0.00019726,2]
[349844312,1737457852918,-317.83256882,0.00019726,2]
[349844313,1737457852928,-553.33,0.00019726,2]
[349844314,1737457852938,-500.0,0.00019726,2]
[349844315,1737457852948,-500.0,0.00019726,2]
[349844316,1737457852957,-1161.08,0.00019726,2]
[349844317,1737457852967,-500.0,0.00019726,2]
[349844318,1737457852976,-500.0,0.00019726,2]
[349844319,1737457852986,-500.0,0.00019726,2]
[349844320,1737457852995,-500.0,0.00019726,2]
[349844321,1737457853006,-573.02,0.00019726,2]
[349844322,1737457853015,-500.0,0.00019726,2]
[349844323,1737457853024,-500.0,0.00019726,2]
[349844324,1737457853034,-500.0,0.00019726,2]
[349844325,1737457853043,-500.0,0.00019726,2]
[349844326,1737457853053,-561.94,0.00019726,2]
[349844327,1737457853062,-500.0,0.00019726,2]
[349844328,1737457853071,-500.0,0.00019726,2]
[349844329,1737457853081,-500.0,0.00019726,2]
[349844330,1737457853091,-539.23,0.00019726,2]
[349844331,1737457853100,-500.0,0.00019726,2]
[349844332,1737457853110,-500.0,0.00019726,2]
[349844333,1737457853122,-500.0,0.00019726,2]
[349844334,1737457853132,-938.77,0.00019726,2]
[349844335,1737457853141,-500.0,0.00019726,2]
[349844336,1737457853150,-500.0,0.00019726,2]
[349844337,1737457853160,-1482.95,0.00019726,2]
[349844338,1737457853170,-692.78,0.00019726,2]
[349844339,1737457853179,-500.0,0.00019726,2]
[349844340,1737457853188,-500.0,0.00019726,2]
[349844341,1737457853198,-500.0,0.00019726,2]
[349844342,1737457853211,-500.0,0.00019726,2]
[349844343,1737457853221,-638.54,0.00019726,2]
[349844344,1737457853230,-500.0,0.00019726,2]
[349844345,1737457853239,-500.0,0.00019726,2]
[349844346,1737457853250,-1164.13,0.00019726,2]
[349844347,1737457853260,-500.0,0.00019726,2]
[349844348,1737457853269,-2001.08,0.00019726,2]
[349844349,1737457853280,-500.0,0.00019726,2]
[349844350,1737457853289,-500.0,0.00019726,2]
[349844351,1737457853299,-644.1,0.00019726,2]
[349844352,1737457853309,-1288.2,0.00019726,2]
[349844353,1737457853318,-500.0,0.00019726,2]
[349844354,1737457853327,-150.09665606,0.00019726,2]
[349844355,1737457853337,-500.0,0.00019726,2]
[349844356,1737457853347,-500.0,0.00019726,2]
[349844357,1737457853357,-755.39,0.00019726,2]
[349844358,1737457853367,-3006.28,0.00019726,2]
[349844359,1737457853376,-1295.2,0.00019726,2]
[349844360,1737457853386,-500.0,0.00019726,2]
[349844361,1737457853397,-500.0,0.00019726,2]
[349844362,1737457853406,-500.0,0.00019773,2]
[349844363,1737457853415,-264093.65918513,0.000198,2]
[349844364,1737457853425,-3902.0,0.00019805,2]
[349844365,1737457853435,-150.0,0.00019805,2]
[349844366,1737457853444,-1176.0,0.00019805,2]
[349844367,1737457853453,-173.6,0.00019863,2]
[349844368,1737457853463,-174.89384677,0.000199,2]
[349844369,1737457853472,-168.27944597,0.000199,2]
[349844370,1737457853481,-1386.67098503,0.00019952,2]
[349844371,1737457853491,-500.0,0.00019999,2]
[349844372,1737457853500,-507.84559888,0.00019999,2]
[349844373,1737457853509,-500.0,0.00019999,2]
[349844374,1737457853519,-500.0,0.0002,2]
[349844375,1737457853528,-500.0,0.0002,2]
[349844376,1737457853538,-500.0,0.0002,2]
[349844377,1737457853548,-500.0,0.0002,2]
[349844378,1737457853557,-500.0,0.0002,2]
[349844379,1737457853567,-500.0,0.0002,2]
[349844380,1737457853577,-500.0,0.0002,2]
[349844381,1737457853586,-500.0,0.0002,2]
[349844382,1737457853596,-500.0,0.0002,2]
[349844383,1737457853605,-500.0,0.0002,2]
[349844384,1737457853615,-300.0,0.0002,2]
[349844385,1737457853625,-356.29168496,0.0002,2]
[349844386,1737457853646,-164.21313326,0.0002,2]
[349844387,1737457853656,-273.39516952,0.0002,2]
[349844388,1737457853669,-226.60483048,0.0002,2]
[349844389,1737457853678,-500.0,0.0002,2]
[349844390,1737457853688,-298.77116952,0.0002,2]
[349844391,1737457853701,-201.22883048,0.0002,2]
[349844392,1737457853710,-500.0,0.0002,2]
[349844393,1737457853719,-500.0,0.0002,2]
[349844394,1737457853728,-579.69,0.0002,2]
[349844395,1737457853738,-473.96269405,0.0002,2]
[349844396,1737457853861,-2005.2464,0.00018778,2]
[349844397,1737457853870,-11727.87558786,0.00019178,2]
[349844398,1737457853882,-711.3485025,0.00019178,2]
[349844399,1737457853895,-2069.19635433,0.00019178,2]
[349844400,1737457853907,-433.88984968,0.00019178,2]
[349844401,1737457853919,-1548.85,0.00019178,2]
[349844402,1737457853931,-334.20049999,0.00019178,2]
[349844403,1737457854094,-274.31711151,0.00019178,2]
[349844404,1737457854106,-225.68288849,0.00019178,2]
[349844405,1737457854117,-7215.71711151,0.00019178,2]
[349844406,1737457854129,-391.13859,0.00019178,2]
[349844407,1737457854518,-1000.0,0.00018978,2]
[349844408,1737457854529,-548.01978545,0.00019178,2]
[349844409,1737457854540,-500.0,0.00019178,2]
[349844410,1737457854551,-3620.00919077,0.00019178,2]
[349844411,1737457854563,-776.1750075,0.00019178,2]
[349844412,1737457854575,-394.83473243,0.00019178,2]
[349844413,1737457854587,-230.23,0.00019452,2]
[349844414,1737457854597,-810.63855057,0.00019805,2]
[349844415,1737457854611,-295.36144943,0.00019805,2]
[349844416,1737457854622,-110.56799934,0.0002,2]
[349844417,1737457854632,-500.0,0.0002,2]
[349844418,1737457854644,-647.31,0.0002,2]
[349844419,1737457854654,-372.423621,0.0002,2]
[349844420,1737457854664,-500.0,0.0002,2]
[349844421,1737457854675,-500.0,0.0002,2]
[349844422,1737457854685,-500.0,0.0002,2]
[349844423,1737457854696,-500.0,0.0002,2]
[349844424,1737457854707,-500.0,0.0002,2]
[349844425,1737457854716,-500.0,0.0002,2]
[349844426,1737457854727,-500.0,0.0002,2]
[349844427,1737457854738,-561.99414465,0.0002,2]
[349844428,1737457854748,-500.0,0.0002,2]
[349844429,1737457854758,-500.0,0.0002,2]
[349844430,1737457854768,-436.26878386,0.0002,2]
[349844431,1737457854778,-500.0,0.0002,2]
[349844432,1737457854789,-641.99,0.0002,2]
[349844434,1737457854940,-500.0,0.0002,2]
[349844435,1737457854979,-500.0,0.0002,2]
[349844436,1737457854989,-653.54,0.0002,2]
[349844437,1737457854999,-500.0,0.0002,2]
[349844438,1737457855009,-500.0,0.0002,2]
[349844439,1737457855019,-500.0,0.0002,2]
[349844440,1737457855028,-500.0,0.0002,2]
[349844441,1737457855038,-500.0,0.0002,2]
[349844442,1737457855047,-919.0,0.0002,2]
[349844443,1737457855057,-500.0,0.0002,2]
[349844444,1737457855067,-500.0,0.0002,2]
[349844445,1737457855076,-500.0,0.0002,2]
[349844446,1737457855086,-500.0,0.0002,2]
[349844447,1737457855096,-500.0,0.0002,2]
[349844448,1737457855105,-500.0,0.0002,2]
[349844449,1737457855116,-500.0,0.0002,2]
[349844450,1737457855127,-500.0,0.0002,2]
[349844451,1737457855136,-500.0,0.0002,2]
[349844452,1737457855148,-500.0,0.0002,2]
[349844453,1737457855158,-500.0,0.0002,2]
[349844454,1737457855167,-500.0,0.0002,2]
[349844455,1737457855177,-500.0,0.0002,2]
[349844456,1737457855186,-500.0,0.0002,2]
[349844457,1737457855197,-297.73610232,0.0002,2]
[349844458,1737457855207,-500.0,0.0002,2]
[349844459,1737457855217,-500.0,0.0002,2]
[349844460,1737457855227,-500.0,0.0002,2]
[349844461,1737457855236,-500.0,0.0002,2]
[349844462,1737457855245,-500.0,0.0002,2]
[349844463,1737457855257,-336.86,0.0002,2]
[349844464,1737457855266,-500.0,0.0002,2]
[349844465,1737457855276,-500.0,0.0002,2]
[349844466,1737457855286,-500.0,0.0002,2]
[349844467,1737457855296,-497.84285251,0.0002,2]
[349844468,1737457855305,-571.2522221,0.0002,2]
[349844469,1737457855315,-500.0,0.0002,2]
[349844470,1737457855324,-500.0,0.0002,2]
[349844471,1737457855333,-500.0,0.0002,2]
[349844472,1737457855342,-500.0,0.0002,2]
[349844473,1737457855352,-500.0,0.0002,2]
[349844474,1737457855361,-659.66,0.0002,2]
[349844475,1737457855371,-500.0,0.0002,2]
[349844476,1737457855380,-500.0,0.0002,2]
[349844477,1737457855389,-500.0,0.0002,2]
[349844478,1737457855400,-500.0,0.0002,2]
[349844479,1737457855410,-500.0,0.0002,2]
[349844480,1737457855419,-611.94,0.0002,2]
[349844481,1737457855429,-500.0,0.0002,2]
[349844482,1737457855439,-500.0,0.0002,2]
[349844483,1737457855448,-500.0,0.0002,2]
[349844484,1737457855458,-505.54654149,0.0002,2]
[349844485,1737457855467,-500.0,0.0002,2]
[349844486,1737457855477,-500.0,0.0002,2]
[349844487,1737457855488,-500.0,0.0002,2]
[349844488,1737457855498,-500.0,0.0002,2]
[349844489,1737457855507,-500.0,0.0002,2]
[349844490,1737457855517,-500.0,0.0002,2]
[349844491,1737457855528,-500.0,0.0002,2]
[349844492,1737457855538,-500.0,0.0002,2]
[349844493,1737457855548,-500.0,0.0002,2]
[349844494,1737457855557,-500.0,0.0002,2]
[349844495,1737457855567,-500.0,0.0002,2]
[349844496,1737457855576,-500.0,0.0002,2]
[349844497,1737457855586,-500.0,0.0002,2]
[349844498,1737457855595,-500.0,0.0002,2]
[349844499,1737457855604,-500.0,0.0002,2]
[349844500,1737457855613,-500.0,0.0002,2]
[349844501,1737457855623,-500.0,0.0002,2]
[349844502,1737457855633,-500.0,0.0002,2]
[349844504,1737457855643,-500.0,0.0002,2]
[349844505,1737457855652,-500.0,0.0002,2]
[349844506,1737457855662,-500.0,0.0002,2]
[349844507,1737457855671,-500.0,0.0002,2]
[349844508,1737457855681,-511.17,0.0002,2]
[349844509,1737457855690,-519.18,0.0002,2]
[349844510,1737457855700,-500.0,0.0002,2]
[349844511,1737457855711,-500.0,0.0002,2]
[349844512,1737457855721,-500.0,0.0002,2]
[349844513,1737457855731,-505.6,0.0002,2]
[349844514,1737457855741,-1136.43,0.0002,2]
[349844515,1737457855750,-500.0,0.0002,2]
[349844516,1737457855760,-500.0,0.0002,2]
[349844517,1737457855769,-500.0,0.0002,2]
[349844518,1737457855779,-500.0,0.0002,2]
[349844519,1737457855789,-404.82,0.0002,2]
[349844520,1737457855798,-500.0,0.0002,2]
[349844521,1737457855808,-518.94,0.0002,2]
[349844522,1737457855818,-500.0,0.0002,2]
[349844523,1737457855827,-500.0,0.0002,2]
[349844524,1737457855837,-198.76,0.0002,2]
[349844525,1737457855847,-500.0,0.0002,2]
[349844526,1737457855857,-500.0,0.0002,2]
[349844527,1737457855867,-500.0,0.0002,2]
[349844528,1737457855876,-500.0,0.0002,2]
[349844529,1737457855886,-500.0,0.0002,2]
[349844530,1737457855896,-673.79,0.0002,2]
[349844531,1737457855905,-500.0,0.0002,2]
[349844532,1737457855914,-500.0,0.0002,2]
[349844533,1737457855924,-500.0,0.0002,2]
[349844534,1737457855933,-561.44142743,0.0002,2]
[349844535,1737457855943,-500.0,0.0002,2]
[349844536,1737457855953,-663.28,0.0002,2]
[349844537,1737457855963,-522.95,0.0002,2]
[349844538,1737457855972,-500.0,0.0002,2]
[349844539,1737457855982,-383.248718,0.0002,2]
[349844540,1737457855991,-490.04547369,0.0002,2]
[349844541,1737457856001,-675.8,0.0002,2]
[349844542,1737457856010,-507.43,0.0002,2]
[349844543,1737457856020,-500.0,0.0002,2]
[349844544,1737457856030,-1670.22,0.0002,2]
[349844545,1737457856039,-661.82,0.0002,2]
[349844546,1737457856048,-649.18,0.0002,2]
[349844547,1737457856057,-500.0,0.0002,2]
[349844548,1737457856067,-500.0,0.0002,2]
[349844549,1737457856076,-1246.53,0.0002,2]
[349844550,1737457856085,-500.0,0.0002,2]
[349844551,1737457856095,-500.0,0.0002,2]
[349844552,1737457856105,-662.59,0.0002,2]
[349844553,1737457856115,-712.45,0.0002,2]
[349844554,1737457856125,-2017.73,0.0002,2]
[349844555,1737457856135,-500.0,0.0002,2]
[349844556,1737457856147,-1214.83,0.0002,2]
[349844557,1737457856157,-610.63,0.0002,2]
[349844558,1737457856168,-964.91,0.0002,2]
[349844559,1737457856179,-524.92,0.0002,2]
[349844560,1737457856190,-500.0,0.0002,2]
[349844561,1737457856202,-500.0,0.0002,2]
[349844562,1737457856214,-500.0,0.0002,2]
[349844563,1737457856224,-500.0,0.0002,2]
[349844564,1737457856235,-615.19,0.0002,2]
[349844565,1737457856246,-1365.53,0.0002,2]
[349844566,1737457856258,-500.0,0.0002,2]
[349844567,1737457856267,-500.0,0.0002,2]
[349844568,1737457856276,-973.38,0.0002,2]
[349844569,1737457856287,-500.0,0.0002,2]
[349844570,1737457856298,-500.0,0.0002,2]
[349844571,1737457856307,-668.31,0.0002,2]
[349844572,1737457856317,-2048.3,0.0002,2]
[349844573,1737457856326,-244.21,0.0002,2]
[349844574,1737457856336,-1972.95,0.0002,2]
[349844575,1737457856345,-500.0,0.0002,2]
[349844576,1737457856355,-500.0,0.0002,2]
[349844577,1737457856364,-1104.67,0.0002,2]
[349844578,1737457856374,-693.41,0.0002,2]
[349844579,1737457856383,-1043.27,0.0002,2]
[349844580,1737457856392,-599.11,0.0002,2]
[349844581,1737457856403,-500.0,0.0002,2]
[349844582,1737457856412,-500.0,0.0002,2]
[349844583,1737457856421,-1277.45,0.0002,2]
[349844584,1737457856431,-544.1,0.0002,2]
[349844585,1737457856440,-418.74122655,0.0002,2]
[349844586,1737457856450,-500.0,0.0002,2]
[349844587,1737457856460,-2199.24,0.0002,2]
[349844588,1737457856469,-578.82,0.0002,2]
[349844589,1737457856478,-500.0,0.0002,2]
[349844590,1737457856488,-678.07,0.0002,2]
[349844591,1737457856497,-962.95,0.0002,2]
[349844592,1737457856507,-500.0,0.0002,2]
[349844593,1737457856516,-500.0,0.0002,2]
[349844594,1737457856526,-500.0,0.0002,2]
[349844595,1737457856535,-694.91,0.0002,2]
[349844596,1737457856545,-500.0,0.0002,2]
[349844597,1737457856555,-802.36,0.0002,2]
[349844598,1737457856564,-500.0,0.0002,2]
[349844599,1737457856574,-1780.11,0.0002,2]
[349844600,1737457856583,-2223.58,0.0002,2]
[349844601,1737457856593,-636.41,0.0002,2]
[349844602,1737457856604,-517.02002139,0.0002,2]
[349844603,1737457856614,-500.0,0.0002,2]
[349844604,1737457856623,-1478.14,0.0002,2]
[349844605,1737457856634,-500.0,0.0002,2]
[349844606,1737457856644,-801.87,0.0002,2]
[349844607,1737457856659,-500.0,0.0002,2]
[349844608,1737457856669,-1731.85,0.0002,2]
[349844609,1737457856680,-500.0,0.0002,2]
[349844610,1737457856689,-500.0,0.0002,2]
[349844611,1737457856699,-747.66,0.0002,2]
[349844612,1737457856710,-500.0,0.0002,2]
[349844613,1737457856720,-561.73,0.0002,2]
[349844614,1737457856731,-500.0,0.0002,2]
[349844615,1737457856741,-553.33,0.0002,2]
[349844616,1737457856751,-500.0,0.0002,2]
[349844617,1737457856761,-500.0,0.0002,2]
[349844618,1737457856771,-1161.08,0.0002,2]
[349844619,1737457856780,-552.85,0.0002,2]
[349844620,1737457856790,-500.0,0.0002,2]
[349844621,1737457856799,-500.0,0.0002,2]